[Event "New York Spring IM-D 2022"]
[Site "New York"]
[Date "2022.04.17"]
[Round "6.1"]
[White "Wang, Eigen"]
[Black "Adewumi, Tanitoluwa"]
[Result "1/2-1/2"]
[ECO "E12"]
[WhiteElo "2242"]
[BlackElo "2190"]
[Annotator "TA"]
[PlyCount "58"]
[EventDate "2022.04.14"]
[EventType "tourn"]
[EventCountry "USA"]
[SourceTitle "playchess.com"]
[Source "ChessBase"]
[SourceQuality "1"]
[TimeControl "5400+30"]

{[%evp 18,58,15,16,33,11,22,20,50,27,84,71,82,71,80,0,0,-98,0,0,11,12,13,31,50,55,59,60,61,58,130,130,134,126,152,110,145,72,72,64,62,24,39]} 1. d4 {[%emt 0:00:11]} Nf6 {[%emt 0:00:02]} 2. c4 {[%emt 0:00:10]} e6 {[%emt 0:00:02]} 3. Nf3 {[%emt 0:00:43]} b6 {[%emt 0:00:07]} 4. a3 {[%emt 0:00:12]} Bb7 {[%emt 0:00:05]} 5. Nc3 {[%emt 0:00:05]} d5 {[%emt 0:00:04]} 6. cxd5 {[%emt 0:00:09]} Nxd5 {[%emt 0:00:07]} 7. Qc2 {[%emt 0:00:16]} Nxc3 {[%emt 0:00:49]} 8. bxc3 {[%emt 0:00:06]} Nd7 {[%emt 0:00:46]} 9. e4 {[%emt 0:00:09]} c5 {[%emt 0:01:51]} 10. Bd3 {[%emt 0:00:18][%cal Od4d5]} g6 {[%emt 0:00:41] E12: Queen's Indian: Unusual White 4th moves, 4 a3, 4 Nc3 Bb7 5 a3 and 4 Nc3 Bb7 .} 11. h4 {[%emt 0:08:36]} h6 {[%emt 0:02:55] [#]} 12. Bf4 $146 {[%emt 0:02:19]} ({Predecessor:} 12. h5 g5 13. Qe2 Qc7 14. O-O Bg7 15. Bb2 e5 16. Bb5 Bc6 17. Bxc6 Qxc6 {0-1 (60) Arabidze,M (2363)-Ionescu,I (2181) Mamaia 2016}) 12... Qe7 {[%emt 0:03:45] The position is equal.} 13. Ne5 {[%emt 0:20:59]} Nxe5 {[%emt 0:02:42]} (13... Bg7 $1 $11) 14. Bxe5 $16 {[%emt 0:00:14]} f6 {[%emt 0:00:28]} 15. Bg3 {[%emt 0:05:47] &Bianco is more active.} Bg7 {[%emt 0:03:52]} 16. Qe2 {[%emt 0:07:34]} ({White should play} 16. Qa4+ $16 Kf7 17. O-O) 16... O-O {[%emt 0:06:20]} 17. Qg4 {[%emt 0:02:33]} (17. f3 $11 {remains equal.}) 17... Qf7 {[%emt 0:02:32]} (17... cxd4 $17 {Strongly threatening ...f5.} 18. Qxg6 dxc3) 18. h5 $1 $36 {[%emt 0:04:41][%mdl 2048] White has some pressure.} g5 {[%emt 0:00:25] [#] White must now prevent ...f5.} 19. Bc4 {[%emt 0:01:12]} Rae8 {[%emt 0:01:36] Hoping for ...f5.} 20. O-O {[%emt 0:01:58]} f5 {[%emt 0:03:27]} 21. exf5 {[%emt 0:00:49]} Qxf5 {[%emt 0:00:09]} 22. Qxf5 {[%emt 0:00:56]} Rxf5 {[%emt 0:00:05]} 23. Rfe1 {[%emt 0:01:27]} Bd5 {[%emt 0:17:52]} (23... Bc8 $14) 24. Bd3 $16 {[%emt 0:04:17]} Rff8 {[%emt 0:00:45]} 25. Bd6 {[%emt 0:01:56][%csl LRc5,LRf8]} cxd4 {[%emt 0:51:33]} 26. Bxf8 {[%emt 0:00:23]} Kxf8 {[%emt 0:00:00] [#]} 27. cxd4 {[%emt 0:02:08]} (27. c4 $142 $1 {[%cal Rc4d5]} Bc6 28. a4) 27... Bxd4 {[%emt 0:00:00]} 28. Rac1 {[%emt 0:02:14]} Bc5 {[%emt 0:00:00]} 29. a4 {[%emt 0:07:43]} a5 {[%emt 0:00:00] Weighted Error Value: White=0.20 (precise) /Black=0.23 (precise)} 1/2-1/2

[Event "New York Spring IM-D 2022"]
[Site "New York"]
[Date "2022.04.17"]
[Round "6.2"]
[White "Yang, Qindong"]
[Black "Paragua, Mark"]
[Result "0-1"]
[ECO "E68"]
[WhiteElo "2084"]
[BlackElo "2456"]
[Annotator "TA"]
[PlyCount "94"]
[EventDate "2022.04.14"]
[EventType "tourn"]
[EventCountry "USA"]
[SourceTitle "playchess.com"]
[Source "ChessBase"]
[SourceQuality "1"]
[TimeControl "5400+30"]

{[%evp 22,94,48,0,0,0,0,8,10,0,0,-100,-106,-239,-25,-6,-12,-18,-43,-44,-42,-37,-15,-35,-31,-33,-33,-121,-121,-120,-72,-90,-86,-80,-83,-110,-110,-109,-91,-128,-102,-103,-105,-108,-105,-172,-146,-173,-173,-174,-174,-174,-174,-281,-177,-345,-318,-318,-326,-326,-311,-259,-197,-29937,-12851,-29948,-12808,-29937,-29948,-29975,-29976,-29975,-29963,-29954,-5120]} 1. d4 {[%emt 0:02:29]} Nf6 {[%emt 0:00:07]} 2. c4 {[%emt 0:00:04]} g6 {[%emt 0:00:16]} 3. Nf3 {[%emt 0:00:20]} Bg7 {[%emt 0:00:11]} 4. g3 {[%emt 0:00:05]} O-O {[%emt 0:00:08]} 5. Bg2 {[%emt 0:00:01]} d6 {[%emt 0:01:17]} 6. O-O {[%emt 0:01:19]} Nbd7 {[%emt 0:00:53]} 7. Nc3 {[%emt 0:00:20]} e5 {[%emt 0:00:13]} 8. e4 {[%emt 0:00:32]} exd4 {[%emt 0:00:35]} 9. Nxd4 {[%emt 0:00:26]} Re8 {[%emt 0:00:10]} 10. h3 {[%emt 0:02:18]} a6 {[%emt 0:00:22]} 11. b3 {[%emt 0:11:29]} Rb8 {[%emt 0:00:43]} 12. Re1 {[%emt 0:09:44]} c5 {[%emt 0:06:23] E68: King's Indian: Fianchetto: 6...Nbd7 7 0-0 e5 8 e4.} 13. Nc2 {[%emt 0:00:40]} b5 {[%emt 0:00:51]} 14. Qxd6 {[%emt 0:09:50]} bxc4 {[%emt 0:04:51] [#] The position is equal.} 15. bxc4 $146 {[%emt 0:07:42]} ({Predecessor:} 15. e5 Nh5 16. g4 cxb3 17. gxh5 b2 18. f4 bxa1=Q 19. Nxa1 Qh4 20. Bd2 Rb6 21. Qd3 {0-1 (30) Platzgummer,F (2351)-Dvirnyy,D (2457) Chotowa 2010}) 15... Ng4 $1 {[%emt 0:11:18]} 16. hxg4 {[%emt 0:12:44]} (16. Qd2 $11 Nge5 17. Qe2) 16... Bxc3 $17 {[%emt 0:00:28]} 17. Be3 {[%emt 0:04:51]} (17. Bd2 $17 Bxa1 18. Rxa1) 17... Be5 $2 {[%emt 0:01:38]} ({Stronger than} 17... Bxe1 18. Nxe1 Rb6 19. Qd2 $17) ({Inferior is} 17... Bxa1 18. Rxa1 Rb6 19. Qd3 $17) (17... Rb2 $1 $19 {[%cal Rb2c2]} 18. Qd3 Qa5) 18. Qd1 $11 {[%emt 0:03:58]} Bxa1 {[%emt 0:01:17]} 19. Qxa1 {[%emt 0:04:02]} Qf6 {[%emt 0:08:11]} 20. Qxf6 {[%emt 0:02:49]} Nxf6 {[%emt 0:00:11]} 21. Bxc5 {[%emt 0:00:47]} Nxg4 {[%emt 0:02:34] Hoping for ...Be6.} 22. Nb4 $1 {[%emt 0:01:46]} Be6 $36 {[%emt 0:03:54][%mdl 2048] White must now prevent ...Rec8. White is under pressure.} 23. Nc6 {[%emt 0:07:05]} Rb7 {[%emt 0:00:25]} 24. f3 {[%emt 0:09:14] [#]} (24. Bd6 $1 $15) 24... Rc7 $1 $17 {[%emt 0:11:14]} 25. Ne7+ {[%emt 0:00:40]} Rexe7 {[%emt 0:00:06]} (25... Kg7 $142 26. Bd6 (26. Bd4+ $2 Kf8 $19) 26... Rcxe7 27. Bxe7 Rxe7 28. fxg4 Bxc4) 26. Bxe7 {[%emt 0:00:06]} Rxe7 {[%emt 0:00:04]} 27. fxg4 {[%emt 0:00:06]} Bxc4 {[%emt 0:00:03]} 28. Bf1 {[%emt 0:01:26]} Bxf1 {[%emt 0:00:38]} 29. Kxf1 {[%emt 0:00:15][%mdl 4096] Endgame KR-KR} Rc7 {[%emt 0:00:04]} 30. e5 {[%emt 0:03:05]} Kf8 {[%emt 0:00:41]} 31. Re3 {[%emt 0:01:26]} Rc4 {[%emt 0:03:59]} 32. Ra3 {[%emt 0:01:26]} Rxg4 {[%emt 0:01:56][%cal Oa6a5]} 33. e6 {[%emt 0:00:28]} (33. Kg2 $17 {was worth a try.}) 33... fxe6 $19 {[%emt 0:03:42] Threatens to win with ...h5.} 34. Kf2 {[%emt 0:00:09]} Kf7 {[%emt 0:00:39]} 35. Rxa6 {[%emt 0:00:02] [#]} Kf6 $1 {[%emt 0:00:05]} 36. a4 {[%emt 0:01:08]} Kf5 {[%emt 0:00:10] aiming for ...Rc4.} 37. Kf3 {[%emt 0:00:30]} (37. Ra8 $142) 37... Rb4 {[%emt 0:00:10] And now ...h5 would win.} 38. a5 $2 {[%emt 0:01:30]} (38. Ra7 {was forced.}) 38... h5 {[%emt 0:03:09]} 39. Ra8 {[%emt 0:00:03]} Rb3+ {[%emt 0:00:07]} 40. Kf2 {[%emt 0:00:06]} Ra3 {[%emt 0:00:42]} 41. Rf8+ {[%emt 0:01:46] [#]} Kg4 $1 {[%emt 0:00:52]} 42. Rf6 $2 {[%emt 0:00:48]} (42. Rf4+ $19 Kg5 43. Re4) 42... Ra2+ {[%emt 0:00:51]} 43. Ke3 {[%emt 0:00:08]} g5 {[%emt 0:00:22]} 44. Rxe6 {[%emt 0:00:28]} Rxa5 {[%emt 0:00:07] Black mates.} 45. Rh6 {[%emt 0:00:18]} Ra3+ {[%emt 0:00:06]} 46. Kf2 {[%emt 0:00:27]} Rf3+ {[%emt 0:00:07]} 47. Ke2 {[%emt 0:00:42]} Rxg3 {[%emt 0:00:07] Weighted Error Value: White=0.72/Black=0.15 (very precise)} 0-1

[Event "New York Spring IM-D 2022"]
[Site "New York"]
[Date "2022.04.18"]
[Round "7.4"]
[White "Paragua, Mark"]
[Black "Savanovic, Aleksandar"]
[Result "1/2-1/2"]
[ECO "C26"]
[WhiteElo "2456"]
[BlackElo "2391"]
[Annotator "TA"]
[PlyCount "36"]
[EventDate "2022.04.14"]
[EventType "tourn"]
[EventCountry "USA"]
[SourceTitle "playchess.com"]
[Source "ChessBase"]
[SourceQuality "1"]
[TimeControl "5400+30"]

{[%evp 10,36,7,-13,0,0,15,-59,-5,0,0,0,0,0,0,0,20,12,42,20,22,22,31,28,36,35,53,49,56]} 1. e4 {[%emt 0:00:14]} e5 {[%emt 0:00:16]} 2. Nc3 {[%emt 0:00:11]} Nf6 {[%emt 0:00:09]} 3. g3 {[%emt 0:00:11]} Nc6 {[%emt 0:00:13]} 4. Bg2 {[%emt 0:00:23]} Bc5 {[%emt 0:00:08]} 5. d3 {[%emt 0:00:30]} d6 {[%emt 0:00:08]} 6. Nge2 {[%emt 0:01:29]} Ng4 {[%emt 0:09:00] C26: Vienna Game: 2...Nf6, sidelines .} 7. O-O {[%emt 0:01:30]} h5 {[%emt 0:00:05]} 8. Na4 {[%emt 0:03:30]} ({White should try} 8. h4 $1 $11) 8... h4 {[%emt 0:01:58]} (8... Nxf2 $15 9. Rxf2 Bxf2+ 10. Kxf2 h4) 9. Nxc5 $11 {[%emt 0:00:28] Strongly threatening Nb3.} hxg3 $1 {[%emt 0:01:39]} 10. hxg3 {[%emt 0:00:38] And now Nb3 would win.} dxc5 {[%emt 0:00:23]} 11. f3 {[%emt 0:00:37]} Nf6 {[%emt 0:03:28] [#]} 12. Be3 $146 {[%emt 0:02:56]} ({Predecessor:} 12. Kf2 Be6 13. Rh1 Ke7 14. Be3 b6 15. Rxh8 Qxh8 16. c3 Rd8 17. Qa4 Qe8 18. Rd1 Kf8 19. Qc2 Rd6 20. b3 Qd7 21. Rd2 a5 22. Qd1 Nh7 {½-½ (22) Rodriguez Vila,A (2315)-Gomez Fontal,F (2365) Cienfuegos 1991}) 12... b6 {[%emt 0:34:51]} 13. c3 {[%emt 0:01:29]} Bh3 {[%emt 0:00:26]} 14. Bxh3 {[%emt 0:04:16]} Rxh3 {[%emt 0:00:06]} 15. d4 {[%emt 1:19:38]} cxd4 {[%emt 0:45:10]} 16. cxd4 exd4 {[%emt 0:00:30] [#]} 17. Kg2 $1 {[%cal Re2d4]} Qd7 {[%emt 0:00:30] Threatens to win with ...0-0-0.} (17... Rh7 18. Nxd4) 18. Nxd4 {[%emt 0:01:30]} O-O-O {[%emt 0:00:30] Weighted Error Value: White=0.08 (flawless) /Black=0.17 (very precise)} 1/2-1/2

[Event "New York Spring IM-D 2022"]
[Site "New York"]
[Date "2022.04.18"]
[Round "7.5"]
[White "Adewumi, Tanitoluwa"]
[Black "Yang, Qindong"]
[Result "1-0"]
[ECO "B51"]
[WhiteElo "2190"]
[BlackElo "2084"]
[Annotator "TA"]
[PlyCount "107"]
[EventDate "2022.04.14"]
[EventType "tourn"]
[EventCountry "USA"]
[SourceTitle "playchess.com"]
[Source "ChessBase"]
[SourceQuality "1"]
[TimeControl "5400+30"]

{[%evp 9,107,28,26,9,13,15,17,1,27,22,25,24,26,28,29,0,25,0,46,-14,20,0,8,-41,-11,-27,-19,-16,0,-31,0,-25,-6,-32,0,-14,-12,-10,0,0,33,16,27,42,69,60,79,70,70,82,73,55,149,145,160,119,135,0,182,177,183,184,182,181,162,170,187,188,194,174,199,144,151,147,211,75,108,12,136,0,0,0,0,0,0,-62,333,0,1814,1770,29983,29984,12840,1449,12837,3350,29992,29993,29996,29995]} 1. e4 {[%emt 0:03:03]} c5 {[%emt 0:01:35]} 2. Nf3 {[%emt 0:00:09]} d6 {[%emt 0:00:03]} 3. Bb5+ {[%emt 0:00:12]} Nd7 {[%emt 0:00:05]} 4. c3 {[%emt 0:00:49]} Ngf6 {[%emt 0:01:34]} 5. Bd3 {[%emt 0:00:23]} a6 {[%emt 0:04:48]} 6. Bc2 {[%emt 0:00:41] B51: Sicilian: Moscow Variation (3 Bb5+) without 3...Bd7.} b5 {[%emt 0:00:44]} 7. d4 {[%emt 0:01:02]} Bb7 {[%emt 0:02:14]} 8. Nbd2 {[%emt 0:00:42] The position is equal.} e5 {[%emt 0:12:25]} 9. d5 {[%emt 0:02:17]} g6 {[%emt 0:02:02]} 10. O-O {[%emt 0:03:07]} Bg7 {[%emt 0:01:11] [#]} 11. Re1 $146 {[%emt 0:01:12]} ({Predecessor:} 11. b3 O-O 12. a4 Qc7 13. Re1 Nb6 14. a5 Nbxd5 15. exd5 Nxd5 16. Bb2 f5 17. c4 {½-½ (34) Nakar,E (2451)-Li,R (2570) Dallas 2017}) 11... O-O {[%emt 0:00:18]} 12. Nf1 {[%emt 0:01:30]} Qc7 {[%emt 0:04:40]} 13. Bd2 {[%emt 0:03:53][%cal Oc3c4]} (13. c4 $5) 13... Rfc8 {[%emt 0:06:43]} (13... c4 $11 {should be considered.}) 14. h4 {[%emt 0:12:51]} (14. c4 $1 $14) 14... a5 {[%emt 0:04:40]} 15. Ng3 {[%emt 0:06:50]} h5 {[%emt 0:02:06]} 16. Bd3 {[%emt 0:06:57]} (16. a4 $11 {is more appropriate.}) 16... Ba6 {[%emt 0:08:08]} (16... c4 $5 {[%cal Rc4d3]} 17. Bc2 a4 $15) 17. Be2 {[%emt 0:15:41]} c4 {[%emt 0:03:49]} 18. Ng5 {[%emt 0:02:14]} Re8 {[%emt 0:04:07]} 19. Rc1 {[%emt 0:09:15]} Rab8 {[%emt 0:03:00]} 20. Rf1 {[%emt 0:05:15]} Bc8 {[%emt 0:07:07]} 21. Be3 {[%emt 0:05:00]} Nf8 {[%emt 0:04:44]} 22. Qd2 {[%emt 0:11:56]} (22. b3 {is more complex.} Ng4 23. Bd2 Bd7 24. Rb1) 22... N8h7 {[%emt 0:05:55]} 23. f3 {[%emt 0:02:01]} Nxg5 {[%emt 0:00:36]} 24. hxg5 {[%emt 0:00:01]} Nh7 {[%emt 0:01:20]} 25. b3 {[%emt 0:00:21]} Bd7 {[%emt 0:01:37]} 26. Nh1 {[%emt 0:01:30]} Bc8 {[%emt 0:06:23]} 27. g3 {[%emt 0:02:16]} Nf8 {[%emt 0:05:59]} 28. Nf2 {[%emt 0:00:58]} Nd7 {[%emt 0:00:34]} 29. bxc4 {[%emt 0:01:57]} bxc4 {[%emt 0:00:05]} 30. Kg2 {[%emt 0:00:42]} Nc5 {[%emt 0:00:18]} (30... Nb6 $14) 31. Bxc4 $16 {[%emt 0:00:29]} Na4 {[%emt 0:00:49]} 32. Bb3 {[%emt 0:00:32]} Nc5 {[%emt 0:00:12]} 33. Bc4 {[%emt 0:00:37]} (33. Bd1 $16) 33... Na4 $1 $18 {[%emt 0:00:42]} 34. Be2 {[%emt 0:00:03]} Bd7 {[%emt 0:01:53]} 35. c4 {[%emt 0:00:44]} Rb2 {[%emt 0:01:28]} 36. Rc2 {[%emt 0:00:01]} Reb8 {[%emt 0:00:24]} 37. Nd3 {[%emt 0:00:17]} Rxc2 {[%emt 0:01:10]} 38. Qxc2 {[%emt 0:00:01]} Bf8 {[%emt 0:00:22]} 39. Rc1 {[%emt 0:01:07]} Be7 {[%emt 0:02:52]} 40. f4 {[%emt 0:00:15]} ({Better is} 40. Qd2 $18) 40... exf4 $16 {[%emt 0:00:47]} 41. gxf4 {[%emt 0:00:39]} Qc8 {[%emt 0:00:36]} (41... Bf8 $16 42. Bd4 Qc8) 42. c5 {[%emt 0:01:29]} (42. Bd4 $18 {is more deadly.}) 42... dxc5 {[%emt 0:00:32]} 43. Kf2 {[%emt 0:00:26]} (43. Bxc5 $2 Bxc5 44. Qd2 (44. Nxc5 $2 Rb2 $19) 44... Qf8 $19) (43. Kh2 $16) 43... Be8 {[%emt 0:00:47]} (43... Bb5 $1 $11) 44. f5 {[%emt 0:00:31] &Bianco is more active.} (44. Nxc5 $2 Bxc5 45. Kg3 (45. Bxc5 $2 Rb2 $19) 45... Rb2 $1 46. Qxb2 Nxb2 $19) (44. Kg3 $16) 44... gxf5 $11 {[%emt 0:00:23]} 45. e5 $36 {[%emt 0:00:17][%mdl 2048] White is pushing.} (45. Nxc5 $2 Rb2 46. Qxa4 Bxa4 $19) 45... f4 {[%emt 0:00:07]} 46. Nxf4 {[%emt 0:00:38] And now e6 would win.} Rb2 {[%emt 0:00:16]} 47. Qe4 {[%emt 0:00:18]} (47. Qd3 $11 Bb5 48. Qxb5 Rxb5 49. Bxb5) 47... Bb5 $2 {[%emt 0:00:23][%mdl 8192]} (47... Qg4 $1 $15 {stays ahead.} 48. Qf3 Bxg5 49. Qxg4 hxg4) 48. d6 $2 {[%emt 0:00:49] Really sharp!} (48. e6 $18 {Intending exf7+ and mate.} Qe8 49. Rc2 Rxc2 50. Qxc2 Bxe2 51. Nxe2) 48... Bxg5 $2 {[%emt 0:00:45][%mdl 8192]} (48... Qg4 $11 49. Rc2 Qh4+ 50. Kf1 Rb1+ 51. Bc1 (51. Rc1 Bxe2+ 52. Kxe2 Nc3+ 53. Rxc3 Qe1+ 54. Kf3 Qd1+ 55. Kg3 Qg4+ 56. Kf2 Qh4+ 57. Kf3 Qg4+ 58. Kf2 Qh4+ 59. Ke2 Qe1+ 60. Kf3 Qd1+ 61. Kg3 Qg4+ 62. Kf2 $11) 51... Bxe2+ 52. Kxe2 Bxg5) 49. Rg1 $18 {[%emt 0:00:18]} Bxe2 {[%emt 0:00:04]} 50. Rxg5+ {[%emt 0:00:09]} ({Avoid the trap} 50. Nxe2 $2 {[#]} Rxe2+ $1 {[%mdl 512]} 51. Kxe2 Nc3+ 52. Kd3 Nxe4 $19) 50... Kf8 {[%emt 0:00:06]} 51. Kg3 {[%emt 0:00:36]} ({Stronger than} 51. Nxe2 Rxe2+ 52. Kg1 Re1+ 53. Kh2 Re2+ 54. Rg2 Rxg2+ 55. Kxg2 Nc3 $11) (51. e6 $142 fxe6 52. Kg1) 51... h4+ {[%emt 0:01:51]} 52. Kxh4 {[%emt 0:00:13]} Bd1 {[%emt 0:00:34]} 53. e6 {[%emt 0:00:20]} fxe6 {[%emt 0:00:36]} 54. Nxe6+ {[%emt 0:00:22] Weighted Error Value: White=0.35/Black=0.51} 1-0

[Event "New York Spring IM-D 2022"]
[Site "New York"]
[Date "2022.04.18"]
[Round "8.2"]
[White "Savanovic, Aleksandar"]
[Black "Adewumi, Tanitoluwa"]
[Result "1/2-1/2"]
[ECO "B85"]
[WhiteElo "2391"]
[BlackElo "2190"]
[Annotator "TA"]
[PlyCount "71"]
[EventDate "2022.04.14"]
[EventType "tourn"]
[EventCountry "USA"]
[SourceTitle "playchess.com"]
[Source "ChessBase"]
[SourceQuality "1"]
[TimeControl "5400+30"]

{[%evp 24,71,35,35,32,0,16,0,0,0,0,0,0,8,21,0,0,0,0,0,0,0,0,0,0,0,0,0,0,0,0,0,0,0,0,0,0,-3,0,0,0,-113,17,-25,-36,-18,-13,-42,-16,-87]} 1. e4 {[%emt 0:00:42]} c5 {[%emt 0:00:05]} 2. Nf3 {[%emt 0:00:22]} e6 {[%emt 0:00:04]} 3. d4 {[%emt 0:00:11]} cxd4 {[%emt 0:00:03]} 4. Nxd4 {[%emt 0:00:11]} Nc6 {[%emt 0:00:04]} 5. Nc3 {[%emt 0:00:06]} Qc7 {[%emt 0:00:24]} 6. Be2 {[%emt 0:00:32]} Nf6 {[%emt 0:00:10]} 7. O-O {[%emt 0:00:15]} Be7 {[%emt 0:00:23]} 8. Be3 {[%emt 0:00:09]} d6 {[%emt 0:01:00]} 9. f4 {[%emt 0:00:08]} a6 {[%emt 0:01:40]} 10. Kh1 {[%emt 0:00:08]} O-O {[%emt 0:00:43]} 11. a4 {[%emt 0:00:32]} Nxd4 {[%emt 0:01:37]} 12. Qxd4 {[%emt 0:00:15]} e5 {[%emt 0:00:35]} 13. Qd2 {[%emt 0:00:15]} exf4 {[%emt 0:05:56] B85: Sicilian Scheveningen: 6 Be2 a6, lines with early Be3.} 14. Bxf4 {[%emt 0:00:21]} Be6 {[%emt 0:00:16]} 15. Rfd1 {[%emt 0:03:56][%cal Rf4d6]} Rfd8 {[%emt 0:01:05]} 16. a5 {[%emt 0:08:07]} Rac8 {[%emt 0:17:32]} 17. h3 {[%emt 0:00:49] [#]} Qd7 $146 {[%emt 0:04:10]} ({Predecessor:} 17... Qb8 18. Ra4 g6 19. Rd4 Ne8 20. Na4 Bf6 21. Rb4 Qc7 22. Nb6 Rb8 23. c3 Qc5 {½-½ (74) Nisipeanu,L (2609)-Bruzon Batista,L (2573) Moscow 2001}) 18. Qe1 {[%emt 0:06:23]} Qe8 {[%emt 0:06:46]} (18... Qc7 {is interesting.} 19. Qg3 Qc5 20. Bh6 g6) 19. Bf3 {[%emt 0:01:29]} (19. Qg3 {keeps more tension.} d5 20. Be5 g6 21. exd5 Nxd5 22. Bf3) 19... Nd7 $1 20. Bxd6 {[%emt 0:03:28]} Bxd6 {[%emt 0:04:13]} 21. Rxd6 {[%emt 0:00:07]} Ne5 {[%emt 0:00:19]} 22. Rxd8 {[%emt 0:00:27]} Qxd8 {[%emt 0:00:26]} 23. Be2 {[%emt 0:10:01]} f6 {[%emt 0:03:14]} 24. Qf2 {[%emt 0:10:46]} Qc7 {[%emt 0:05:33]} 25. Qe3 {[%emt 0:02:26]} Qc5 {[%emt 0:03:22]} 26. Qd2 {[%emt 0:01:31]} Qb4 {[%emt 0:02:58]} 27. Qc1 {[%emt 0:00:34]} Qd4 {[%emt 0:41:22][%cal Oe6h3]} 28. Ra4 {[%emt 0:11:38]} Qd7 {[%emt 0:00:00][%cal Oc8c3] Strongly threatening ...Rxc3!} 29. Ra3 {[%emt 0:01:15]} Rd8 {[%emt 0:00:00]} 30. Bf1 {[%emt 0:20:53]} Qd4 {[%emt 0:00:00]} 31. Ra4 {[%emt 0:08:39]} Qf2 {[%emt 0:00:00][%cal Oe6h3]} 32. Nd5 {[%emt 0:00:51] [#]} (32. Be2 $11) 32... Bxd5 {[%emt 0:00:00]} ({Black should try} 32... Bxh3 $1 $17 {[%cal Oe5f3][%mdl 512] Threatens to win with ...Nf3!} 33. Qf4 (33. gxh3 $2 Nf3 $19) 33... Qxf4 34. Nxf4 {[#]} Rd1 $1 35. Nxh3 Rxf1+ 36. Ng1 Rf2) 33. exd5 {[%emt 0:00:06]} (33. Qd1 $5 {[%cal Re4d5]}) 33... Rxd5 {[%emt 0:00:00]} 34. Rf4 {[%emt 0:01:34]} Qg3 {[%emt 0:00:00]} 35. b4 {[%emt 0:02:43]} Qc3 {[%emt 0:00:00]} 36. Re4 {[%emt 0:00:27] Weighted Error Value: White=0.16 (very precise) /Black=0.09 (flawless)} (36. Qb1 $1 $11 Rd6 37. b5 Qxa5 38. Rb4) 1/2-1/2

[Event "New York Spring IM-D 2022"]
[Site "New York"]
[Date "2022.04.18"]
[Round "8.3"]
[White "Csonka, Attila Istvan"]
[Black "Paragua, Mark"]
[Result "1/2-1/2"]
[ECO "B53"]
[WhiteElo "2334"]
[BlackElo "2456"]
[Annotator "TA"]
[PlyCount "40"]
[EventDate "2022.04.14"]
[EventType "tourn"]
[EventCountry "USA"]
[SourceTitle "playchess.com"]
[Source "ChessBase"]
[SourceQuality "1"]
[TimeControl "5400+30"]

{[%evp 20,21,-28,-20]} 1. e4 {[%emt 0:00:04]} c5 {[%emt 0:00:13]} 2. Nf3 {[%emt 0:00:09]} d6 {[%emt 0:00:07]} 3. d4 {[%emt 0:00:05]} cxd4 {[%emt 0:00:06]} 4. Qxd4 {[%emt 0:00:07]} Nc6 {[%emt 0:00:32]} 5. Bb5 {[%emt 0:00:06]} Bd7 {[%emt 0:00:07]} 6. Bxc6 {[%emt 0:00:45]} Bxc6 {[%emt 0:00:07]} 7. Nc3 {[%emt 0:00:09]} Nf6 {[%emt 0:00:14]} 8. Bg5 {[%emt 0:00:08]} e6 {[%emt 0:00:18]} 9. O-O-O {[%emt 0:00:17]} Be7 {[%emt 0:00:08]} 10. Kb1 {[%emt 0:00:18] 10.Qd3 is becoming the main line.} O-O {[%emt 0:02:31]} 11. Rhe1 {[%emt 0:02:09] [#]} {Predecessor:} a6 $146 {B53: Sicilian: 2...d6: Lines with Qxd4.} 12. Qd3 b5 13. Nd4 Bb7 14. f3 Rc8 15. h4 h6 16. Bc1 Nd7 17. g4 Ne5 18. Qe2 b4 19. Na4 Bc6 20. Nxc6 Rxc6 {1-0 (28) Grigoryan,K (2645)-Iniyan,P (2555) Lorca 2021} 1/2-1/2

[Event "New York Spring IM-D 2022"]
[Site "New York"]
[Date "2022.04.18"]
[Round "8.5"]
[White "Cervantes Landeiro, Thalia"]
[Black "Dans, Dwight"]
[Result "1-0"]
[ECO "E76"]
[WhiteElo "2206"]
[BlackElo "1979"]
[Annotator "TA"]
[PlyCount "42"]
[EventDate "2022.04.14"]
[EventType "tourn"]
[EventCountry "USA"]
[SourceTitle "playchess.com"]
[Source "ChessBase"]
[SourceQuality "1"]
[TimeControl "5400+30"]

{[%evp 18,42,0,0,102,29,23,26,28,28,124,88,110,78,85,92,145,142,261,253,323,291,391,388,659,618,824]} 1. d4 {[%emt 0:00:03]} Nf6 {[%emt 0:03:07]} 2. c4 {[%emt 0:00:08]} g6 {[%emt 0:00:15]} 3. Nc3 {[%emt 0:00:09]} Bg7 {[%emt 1:28:38]} 4. e4 {[%emt 0:00:13]} d6 {[%emt 0:00:00]} 5. f4 {[%emt 0:04:02]} O-O {[%emt 0:00:00]} 6. Nf3 {[%emt 0:00:05]} c5 {[%emt 0:00:00]} 7. d5 {[%emt 0:00:09]} e6 {[%emt 0:00:00]} 8. dxe6 {[%emt 0:00:09]} fxe6 {[%emt 0:00:00]} 9. Bd3 {[%emt 0:00:07][%cal Bf1d3,Bd3c4,Bc4d5][%mdl 32]} Nc6 {[%emt 0:00:00]} 10. O-O {[%emt 0:00:10]} d5 {[%emt 0:00:00] [#] E76: King's Indian: Four Pawns Attack: Lines specific to 6 Nf3 move-order.} (10... b6 $11) 11. cxd5 {[%emt 0:00:47]} (11. e5 $1 $16 {[%cal Re5f6]}) 11... exd5 $11 {[%emt 0:00:00]} 12. Nxd5 {[%emt 0:00:29]} Nxd5 {[%emt 0:00:00] White has an edge.} 13. Bc4 {[%emt 0:00:13][%mdl 64] [#] Pin} Nd4 $146 {[%emt 0:00:00]} ({Predecessor:} 13... Kh8 14. Qxd5 Qxd5 15. Bxd5 Nb4 16. Bc4 Bg4 17. e5 Nc2 18. Rb1 Bf5 19. b3 Rad8 {1-0 (37) Haus,V-Ahrens,T Kassel 1995}) 14. Bxd5+ {[%emt 0:01:12]} Kh8 {[%emt 0:00:00]} 15. Nxd4 {[%emt 0:08:07]} (15. Ng5 {keeps more tension.} Qe7 16. Be3 h6 17. Nf3) 15... Bxd4+ {[%emt 0:00:00]} 16. Kh1 {[%emt 0:00:10]} Qe7 {[%emt 0:00:00]} ({Black should try} 16... Qb6) 17. Qb3 $16 {[%emt 0:05:32]} g5 {[%emt 0:00:00]} (17... Re8 $16 18. Be3 Bg4 19. Bxd4+ (19. Qxb7 Qxb7 20. Bxd4+ cxd4 $11) (19. Bxb7 Rab8 $15) 19... cxd4) 18. f5 $18 {[%emt 0:09:05]} a5 {[%emt 0:00:00]} 19. Be3 {[%emt 0:02:58]} Bxe3 {[%emt 0:00:00]} 20. Qxe3 {[%emt 0:00:15] [#] Qc3+ is the strong threat.} Bd7 $2 {[%emt 0:00:00]} (20... Ra6 21. Rac1 Raf6 22. Rxc5 b6) 21. Qc3+ {[%emt 0:02:27]} Rf6 {[%emt 0:09:00] Weighted Error Value: White=0.25 (precise) /Black=1.00} 1-0